Cogmind - Beta 13 @@@ ROGUE MODE // 2024.03.26 @ 14:03:41 Player: Desymo99 Result: Destroyed by G-34 Mercenary with Small Laser Performance ------------- Evolutions (0) 0 Regions Visited (1) 200 Robots Destroyed (9) 45 Value Destroyed (143) 143 Prototype IDs (0) 0 Alien Tech Used (0) 0 Bonus (0) 0 TOTAL SCORE: 388 Bonus ------- None Cogmind --------- Core Integrity 0/250 Matter 300/300 Energy 100/100 System Corruption 0% Temperature Cool (6) Movement Core (350) Ox6 Location -10/Materials Parts ------- > --- POWER (1) -------- (None) > --- PROPULSION (2) --- (None) > --- UTILITY (2) ------ Large Storage Unit > --- WEAPON (2) ------- (None) > --- INVENTORY (15) --- Heat Sink Small Matter Pod (50) Improved Terrain Scanner Mining Laser Peak State ------------ > --- POWER ------------ Ion Engine > --- PROPULSION ------- Compact Wheel Compact Wheel > --- UTILITY ---------- Small Storage Unit Improved Terrain Scanner > --- WEAPON ----------- Medium Laser Light Assault Rifle > --- INVENTORY -------- Light Ion Engine Light Treads Light Treads Aluminum Leg Aluminum Leg EM Pulse Gun [Rating: 9] Favorites ----------- Power Ion Engine Engine Ion Engine Propulsion Compact Wheel Wheel Compact Wheel Utility Large Storage Unit Device Seismic Detector Storage Large Storage Unit Weapon Light Assault Rifle Energy Gun Medium Laser Ballistic Gun Light Assault Rifle Special Weapon Mining Laser Build | -11 -10 ------- Run | Yrd Mat Slots Evolved . | . . Power . | . . Propulsion . | . . Utility . | . . Weapon . | . . Parts Attached 23 | 9 14 Power 2 | 1 1 Engine 2 | 1 1 Core . | . . Reactor . | . . Propulsion 5 | 2 3 Treads . | . . Leg . | . . Wheel 5 | 2 3 Hover . | . . Flight . | . . Utility 4 | 3 1 Device 2 | 2 . Storage 2 | 1 1 Processor . | . . Hackware . | . . Protection . | . . Artifact . | . . Weapon 12 | 3 9 Energy Gun 6 | 2 4 Energy Cannon . | . . Ballistic Gun 4 | 1 3 Ballistic Cannon . | . . Launcher . | . . Special Weapon 2 | . 2 Impact Weapon . | . . Slashing Weapon . | . . Piercing Weapon . | . . Special Melee Weapon . | . . Unidentified Prototypes . | . . Parts Lost 12 | . 12 Power 2 | . 2 Propulsion 5 | . 5 Utility 1 | . 1 Weapon 4 | . 4 Highest Loss Streak 12 | . 12 To Critical Strikes . | . . Average Slot Usage (%) 87 | . 87 Engine 12 | . 12 Wheel 24 | . 24 Device 10 | . 10 Storage 14 | . 14 Energy Gun 10 | . 10 Ballistic Gun 11 | . 11 Special Weapon 3 | . 3 Naked Turns . | . . Heaviest Build 29 | 14 29 Greatest Support 32 | 32 32 Greatest Overweight (x) 7 | . 7 Average Overweight (x) . | . . Largest Inventory Capacity 15 | 8 15 Average Capacity 13 | 7 14 Most Carried 10 | 8 10 Average Carried 7 | 4 8 Final Capacity 15 | 8 15 Final Carried 7 | 7 4 Class Distribution -------------------- 100% | Mutant Dominant Class ---------------- Mutant | -10/Materials Resources | -11 -10 ----------- Run | Yrd Mat Matter Collected 464 | 321 143 Remotely . | . . Salvage Created 365 | 139 226 Parts 23 | 15 8 Haulers Intercepted . | . . Recyclers Shooed 2 | 1 1 Parts Field Recycled . | . . Retrieved Matter . | . . Parts Self-Destructed . | . . Prevented . | . . Kills | -11 -10 ------- Run | Yrd Mat Combat Hostiles Destroyed 3 | . 3 Guns 3 | . 3 Classes Destroyed 4 | 3 1 Worker 2 | 2 . Tunneler 2 | 2 . Recycler 2 | 1 1 Grunt 3 | . 3 Best Kill Streak 2 | 2 1 Combat Bots Only 1 | . 1 Max Kills in Single Turn 1 | 1 1 Gunslinging . | . . Exploded . | . . Melee . | . . Uniques/NPCs Destroyed . | . . Combat | -11 -10 -------- Run | Yrd Mat Hostile Shots Fired 94 | . 94 Missed 20 | . 20 Damage Taken 1003 | . 1003 Core 255 | . 255 Absorbed by Shields . | . . Core Remaining (%) 100 | 100 . Volleys Fired 82 | 14 68 Largest 2 | 2 2 Hottest 100 | 70 100 Shots Fired 129 | 28 101 Gun 116 | 28 88 Cannon . | . . Launcher . | . . Special 13 | . 13 Kinetic 62 | 14 48 Thermal 53 | 14 39 Explosive . | . . Electromagnetic 14 | . 14 Robot Hit Streak 14 | 7 14 Robot Miss Streak 4 | 4 4 Penetration Max . | . . Secondary Targets 1 | . 1 Max Gunslinging Chain 1 | . 1 Shots Hit Robots 75 | 18 57 Core Hits 30 | 9 21 Critical Kills . | . . Critical Parts Destroyed . | . . Critical Strikes 1 | 1 . Burn 1 | 1 . Melee Attacks . | . . Impact . | . . Slashing . | . . Piercing . | . . Sneak Attacks . | . . Combat Hostiles . | . . Follow-up Attacks . | . . Damage Inflicted 818 | 195 623 Guns 818 | 195 623 Cannons . | . . Explosions . | . . Melee . | . . Ramming . | . . Kinetic 347 | 69 278 Thermal 315 | 126 189 Explosive . | . . Electromagnetic 156 | . 156 Impact . | . . Slashing . | . . Piercing . | . . Highest Corruption . | . . Average Corruption . | . . Corruption Purged . | . . Corruption Blocked . | . . Overload Shots . | . . Overflow Damage . | . . Projectiles . | . . Explosions . | . . Melee . | . . Knockbacks . | . . Impact . | . . Kinetic . | . . Secondary . | . . Self-Inflicted Damage . | . . Shots . | . . Rammed . | . . Targets Rammed . | . . Kicked . | . . Crushed . | . . Highest Temperature 249 | 90 249 Average Temperature 83 | 44 91 Received Heat Transfer 594 | . 594 Siege Activations . | . . Robots Corrupted . | . . Combat Hostiles . | . . Parts Fried . | . . Impact Corruptions . | . . Robots Melted . | . . Combat Hostiles . | . . Parts Melted . | . . Heat Transferred 999 | 444 555 Parts Sabotaged . | . . Parts Stolen . | . . Parts Stripped . | . . Power Chain Reactions . | . . Alert | -11 -10 ------- Run | Yrd Mat Peak Influence 59 | 25 59 Initial 16 | . 16 Average 28 | 8 35 Maximum Alert Level . | . . Low Security (%) 100 | 100 100 Level 1 . | . . Level 2 . | . . Level 3 . | . . Level 4 . | . . Level 5 . | . . High Security . | . . Max Security . | . . Squads Dispatched 2 | . 2 Investigation 1 | . 1 Extermination . | . . Reinforcement 1 | . 1 Assault . | . . Garrison . | . . Intercept . | . . Searches Triggered . | . . Construction Impeded . | . . Haulers Reinforced . | . . Active Scanning Responses . | . . Cargo Convoy Interrupts . | . . Stealth | -11 -10 --------- Run | Yrd Mat Distress Signals 1 | . 1 Communications Jammed . | . . Distress Signals . | . . Times Spotted 10 | . 10 Peak Tracking Total 2 | . 2 Tactical Retreats . | . . Traps | -11 -10 ------- Run | Yrd Mat Traps Triggered 2 | . 2 Indirectly . | . . Trap Hack Attempts . | . . Triggered . | . . Disarmed . | . . Reprogrammed . | . . Reused . | . . Traps Extracted . | . . Installed . | . . Triggered . | . . Machines | -11 -10 ---------- Run | Yrd Mat Machines Disabled . | . . Max in Single Turn . | . . Machines Repaired . | . . Machines Dismantled . | . . Machines Sabotaged . | . . Overloaded Fab Kills . | . . Hacking | -11 -10 --------- Run | Yrd Mat Machines Accessed 2 | . 2 Terminals 1 | . 1 Fabricators . | . . Repair Stations . | . . Recycling Units 1 | . 1 Scanalyzers . | . . Garrison Access . | . . Total Hacks 9 | . 9 Successful 5 | . 5 Failed 4 | . 4 Catastrophic . | . . Database Lockouts . | . . Manual 7 | . 7 Terminals 5 | . 5 Fabricators . | . . Repair Stations . | . . Recycling Units 4 | . 4 Scanalyzers . | . . Garrison Access . | . . Terminal Hacks 1 | . 1 Alert Level 1 | . 1 Fabricator Hacks . | . . Repair Station Hacks . | . . Recycling Unit Hacks 1 | . 1 Report Inventory 1 | . 1 Scanalyzer . | . . Garrison Access Hacks . | . . Unauthorized Hacks 3 | . 3 Terminals 1 | . 1 Botnet 1 | . 1 Fabricators . | . . Repair Stations . | . . Recycling Units 2 | . 2 Reject 1 | . 1 Mask 1 | . 1 Scanalyzers . | . . Garrison Access . | . . Data Cores Recovered . | . . Used . | . . Hacking Detections 2 | . 2 Full Trace Events . | . . Feedback Events . | . . Feedback Blocked . | . . Robot Schematics Acquired . | . . Robots Built . | . . Authchips . | . . Time . | . . Total Robot Build Rating . | . . Part Schematics Acquired . | . . Parts Built . | . . Authchips . | . . Time . | . . Total Part Build Rating . | . . Parts Repaired . | . . Time . | . . Parts Recycled . | . . Recycled Matter . | . . Retrieved Matter . | . . Retrieved Components . | . . Parts Scanalyzed . | . . Part Schematics Acquired . | . . Parts Damaged . | . . Bothacking | -11 -10 ------------ Run | Yrd Mat Used RIF Installer . | . . Robots Hacked . | . . Non-combat . | . . Combat . | . . Robot Hacks Applied . | . . Relay Couplers Released . | . . Fabnet Peak Effective % . | . . Robots Rewired . | . . Allies Hacked . | . . Hacks Repelled . | . . Allies | -11 -10 -------- Run | Yrd Mat Total Allies . | . . Largest Group . | . . Highest-Rated Group . | . . Highest-Rated Ally . | . . Total Orders . | . . Ally Attacks . | . . Total Damage . | . . Kills . | . . Allies Corrupted . | . . Allies Melted . | . . Intel | -11 -10 ------- Run | Yrd Mat Robot Analysis Total . | . . Derelict Logs Recovered . | . . Drone Launches . | . . Drone Recoveries . | . . Exploration | -11 -10 ------------- Run | Yrd Mat Turns Passed 658 | 162 496 Spaces Moved 294 | 89 205 Core 13 | 1 12 Treads . | . . Legs . | . . Wheels 281 | 88 193 Hover . | . . Flight . | . . Fastest Speed 50 | 50 95 Average Speed 110 | 99 115 Slowest Speed 400 | 100 400 Overloaded Moves . | . . Propulsion Burnouts . | . . Robots Hopped . | . . Cave-ins Triggered . | . . Exploration Rate (%) 17 | 5 30 Regions Visited 1 Branch Regions . Pre-discovered Areas . | . . Known Exits Taken . | . . Unknown Exits Taken 1 | 1 . Scrap Searched . | . . Spaces Dug 13 | . 13 Terrain Destroyed 13 | . 13 Melee . | . . Projectile 13 | . 13 AOE . | . . Terrain Rammed . | . . Walls Destroyed . | . . Machines Disabled . | . . Actions | -11 -10 --------- Run | Yrd Mat Total 481 | 135 346 Wait 63 | 7 56 Move 293 | 88 205 Hop . | . . Pick Up 14 | 12 2 Fast Attach 7 | 7 . Attach 6 | . 6 Detach . | . . Swap 10 | 2 8 Drop 6 | 5 1 Fire 82 | 14 68 Melee . | . . Ram . | . . Kick . | . . Crush . | . . Escape Stasis . | . . Rewire . | . . Trap . | . . Miscellaneous . | . . Route ------- -11/Scrapyard -10/Materials (discovered 2 exits: [*Min x2]) History --------- Turn | Location | Event 22 | -11/Scrapyard | Discovered new exit (range 14) 163 | -11/Scrapyard | Entered Materials 318 | -10/Materials | Build established: Mutant 578 | -10/Materials | Core integrity fell below 50% 630 | -10/Materials | Discovered new exit (range 8) 632 | -10/Materials | Core integrity fell below 20% 640 | -10/Materials | Discovered new exit (range 16) 654 | -10/Materials | Lost 12 parts (2p5n1u4w) 659 | -10/Materials | Destroyed by G-34 Mercenary with Small Laser Last Messages --------------- 00609_ G-47 Trooper destroyed. 00613_ W-16 Scout sends out distress signal. 00614_ U-05 Engineer builds a Wall. 00616_ Acquired 54 matter. 00617_ Acquired 36 matter. 00617_ Triggered Explosive Trap. 00617_ An explosion rips through the floor. 00617_ Wheel destroyed. 00618_ U-05 Engineer lays Concrete. 00620_ U-05 Engineer builds a Wall. 00623_ EM Pulse Gun destroyed. 00624_ U-05 Engineer lays Concrete. 00627_ U-05 Engineer builds a Wall. 00630_ EXIT=FOUND 00631_ U-05 Engineer lays Concrete. 00640_ EXIT=FOUND 00641_ U-05 Engineer lays Concrete. 00641_ M-13 Machinist repairs R-06 Scavenger. 00642_ U-05 Engineer lays Concrete. 00646_ M-13 Machinist repairs Tractor Beam. Map ----- +----------------------------------------------------+ | ?????????????????????????????????????????????????? | | ?????????????????????????????????????????????????? | | ?????????????????????????????????????????????????? | | ?????????????????????????????????????????????????? | | ?????????????????????????????????????????????????? | | ?????????????????????????????????????????????????? | | ?????????????????????????????????????????????????? | | ?????????????????????????????????????????????????? | | ?????????????????????????????????????????????????? | | ?????????????????????????????????????????????????? | | ?????????????????????????????????????????????????? | | ?????????????????????????????????????????????????? | | ????????????????????????######???????????????????? | | ???????????????????????? #???????????????????? | | ???????????????????????? #???????????????????? | | ???????????????????????? < ????????????????????? | | ???????????????????????? ????????????????????? | | ???????????????????????? ????????????????????? | | ????????????????????????# #????????????????????? | | ????????????????????????#a #????????????????????? | | ????????????????????????# #????????????????????? | | ????????????????????????# #????????????????????? | | ?????????????????????#### ##???????????????????? | | ?????????????????????#""" #???????????????????? | | ?????????????????????#" #???????????????????? | | ?????????????????????#"| @ #???????????????????? | | ?????????????????????#"" < #???????????????????? | | ?????????????????????#"| #???????????????????? | | ?????????????????????#" #???????????????????? | | ?????????????????????#""" #???????????????????? | | ?????????????????????#### ##???????????????????? | | ????????????????????????# #????????????????????? | | ????????????????????????# #????????????????????? | | ?????????????????##??####rg #????????????????????? | | ?????????????????####### ##???????????????????? | | ?????????????????## =% ##+##???????????????? | | ?????????????????## #??????####????? | | ???????????######## m ########""#????? | | ???????????# # """ """ # "#????? | | ???????????# # """"""""" # ##????? | | ???????????# # """"" " # #?????? | | ???????????# + # #?????? | | ???????????# # # ##????? | | ??????####?# # # "##???? | | ???####""###"################ # " #???? | | ???# ##??????????????# # " #???? | | ???#""" T #???????????????# # ###???? | | ???#""" ################# ###+############ | | ???#""" # | | ???# ! + % | +----------------------------------------------------+ Best States ------------- Heat Dissipation 25 Energy Generation 10 Energy Capacity 250 Matter Stores 300 Matter Capacity 300 Sight Range 16 Terrain Scan Range 16 Terrain Scan Density 10 Evasion (%) 40 Item Schematics ----------------- None Robot Schematics ------------------ None Fabricated ------------ Nothing Alien Tech Used ----------------- None Achievements -------------- None Challenges ------------ None Game ------ Seed AngularFlyingSegregator Manual? 0 Play Time 00:09:02 Cumulative 27.5 hours Start 2024.03.26 @ 13:54:14 End 2024.03.26 @ 14:03:41 Sessions 1 Manual Loads 0 Difficulty Rogue Special Mode None Game No. 40 Rogue 40 Adventurer 0 Explorer 0 Win Type - Total 0 Types 0/0/0/0/0/0/0/0/0 Lore% 23 Gallery% 27 Achievement% 26 Wizard Run 0 Options --------- Layout 2 ASCII 0 Keyboard 1 Movement Numpad Keybinds 0 Fullscreen 1 Font 16/SmallcapsGlow Map View 55x47 Zoom Use 0% Tactical HUD 1 Map Filters NONE Filters NONE Steam 1 RUN: be013a16-f4f1-4278-a015-fb1b7f9d8565